lending/lending_fUSD_20240621
["ID","MTS","AMOUNT","RATE_DAILY","PERIOD"]
[330008457,1718928030193,157.062109,0.00025,72]
[330008458,1718928098988,157.062109,0.00025,74]
[330008459,1718928117978,157.062109,0.00025,75]
[330008460,1718928130909,165.03,0.00010292,2]
[330008484,1718928631499,-832.57,0.00011001,2]
[330008485,1718928631509,-299.94470823,0.00012475,2]
[330008486,1718928631747,-141.8908572,0.00012475,2]
[330008487,1718928631757,-380.29784364,0.00012675,2]
[330008489,1718928631769,-619.70215636,0.00012675,2]
[330008491,1718928631779,-1278.32,0.00012692,2]
[330008493,1718928631788,-4351.26,0.00012734,2]
[330008494,1718928631798,-250.0,0.00012795,2]
[330008495,1718928631807,-180.69,0.00012799,2]
[330008496,1718928631817,-250.0,0.00012801,2]
[330008497,1718928631826,-150.0,0.00012806,2]
[330008498,1718928631835,-150.0,0.00012961,2]
[330008499,1718928631847,-300.0,0.00012961,2]
[330008500,1718928631860,-7517.0872,0.00012962,2]
[330008501,1718928631870,-499.99,0.00013062,2]
[330008502,1718928631880,-177.26,0.00013208,2]
[330008503,1718928631890,-832.57,0.00013265,2]
[330008504,1718928631899,-4628.53014422,0.00013441,2]
[330008506,1718928631909,-291.93341729,0.00013499,2]
[330008508,1718928631918,-300.0,0.000135,4]
[330008509,1718928631929,-1000.0,0.000136,2]
[330008510,1718928631940,-600.0,0.000136,4]
[330008511,1718928631949,-285.75148297,0.00013604,2]
[330008512,1718928631961,-156.7891,0.0001366,2]
[330008513,1718928631970,-261.35,0.00013699,2]
[330008514,1718928631980,-159.77,0.00013699,2]
[330008515,1718928631989,-1000.0,0.000137,2]
[330008516,1718928631999,-900.0,0.000137,5]
[330008517,1718928632008,-511.0615936,0.00013719,2]
[330008518,1718928632018,-755.32277951,0.00013754,2]
[330008519,1718928632027,-9403.85971134,0.0001379,2]
[330008520,1718928632036,-15084.09451746,0.00013799,2]
[330008521,1718928632046,-19594.87483132,0.00013799,2]
[330008522,1718928632056,-39400.1521,0.000138,2]
[330008523,1718928632067,-1000.0,0.000138,2]
[330008524,1718928632076,-100000.0,0.000138,2]
[330008525,1718928632085,-500.0,0.000138,2]
[330008526,1718928632096,-377.87969654,0.000138,2]
[330008535,1718928637797,-424.88308538,0.000138,2]
[330008539,1718928637828,-1002.20146567,0.000138,2]
[330008541,1718928637840,-1996.19291569,0.000138,2]
[330008543,1718928637854,-3450.49798637,0.000138,2]
[330008546,1718928637877,-355.4625208,0.000138,2]
[330008552,1718928637920,-336.47922348,0.000137,2]
[330008554,1718928637931,-1084.17957934,0.000137,2]
[330008556,1718928637943,-2199.22889,0.000137,2]
[330008558,1718928637955,-298.9533,0.000137,2]
[330008705,1718928639568,-11459.59984282,0.000137,2]
[330008707,1718928639580,-4295.71036932,0.000137,2]
[330008710,1718928639592,-8098.27469504,0.000137,2]
[330008712,1718928639603,-9118.72391783,0.000138,2]
[330008751,1718928639981,-545.65398465,0.000138,2]
[330008753,1718928639993,-3204.04329008,0.000138,2]
[330008761,1718928640058,-53734.24813699,0.000138,2]
[330008763,1718928640069,-1300.0,0.000138,5]
[330008765,1718928640079,-753.56799231,0.00013886,2]
[330008767,1718928640088,-537.17043537,0.00013887,2]
[330008769,1718928640097,-179.52460521,0.00013888,2]
[330008771,1718928640107,-321.07101081,0.00013889,2]
[330008773,1718928640117,-179.5246052,0.00013894,2]
[330008775,1718928640126,-635.84479315,0.00013899,2]
[330008777,1718928640135,-1559.971896,0.000139,2]
[330008779,1718928640145,-156.77732302,0.000139,2]
[330008781,1718928640154,-1339.9241,0.000139,2]
[330008783,1718928640164,-19697.90081975,0.000139,2]
[330008785,1718928640173,-1600.0,0.000139,5]
[330008787,1718928640183,-2823.00817,0.000139,2]
[330008789,1718928640192,-1762.37693162,0.000139,2]
[330008791,1718928640202,-156.79225335,0.000139,2]
[330008793,1718928640211,-163.26112512,0.000139,2]
[330008795,1718928640221,-179.5246052,0.000139,2]
[330008797,1718928640230,-160.81463076,0.000139,2]
[330008799,1718928640240,-151.0,0.000139,2]
[330008801,1718928640249,-300.783705,0.000139,2]
[330008803,1718928640259,-278.761568,0.000139,2]
[330008805,1718928640269,-7005.0,0.00013973,2]
[330008807,1718928640278,-678.835109,0.00013973,2]
[330008809,1718928640288,-193.553544,0.00013988,2]
[330008811,1718928640297,-193.553544,0.00013988,2]
[330008813,1718928640307,-151.0,0.00013988,2]
[330008815,1718928640316,-151.0,0.00013988,2]
[330008817,1718928640326,-151.0,0.00013988,2]
[330008819,1718928640335,-151.0,0.00013988,2]
[330008821,1718928640345,-186.563634,0.00013988,2]
[330008823,1718928640355,-151.0,0.00013988,2]
[330008824,1718928640365,-269.41357,0.00013988,2]
[330008826,1718928640375,-222.621238,0.00013988,2]
[330008828,1718928640384,-222.621238,0.00013988,2]
[330008830,1718928640395,-151.0,0.00013988,2]
[330008831,1718928640404,-151.0,0.00013988,2]
[330008832,1718928640415,-151.0,0.00013988,2]
[330008833,1718928640425,-151.0,0.00013988,2]
[330008835,1718928640440,-165.374972,0.00013988,2]
[330008837,1718928640450,-165.374972,0.00013988,2]
[330008838,1718928640460,-151.0,0.00013988,2]
[330008841,1718928640471,-151.0,0.00013988,2]
[330008842,1718928640481,-151.0,0.00013988,2]
[330008844,1718928640490,-205.237431,0.00013988,2]
[330008846,1718928640500,-151.0,0.00013988,2]
[330008848,1718928640510,-205.237431,0.00013988,2]
[330008850,1718928640522,-151.0,0.00013988,2]
[330008852,1718928640533,-151.0,0.00013988,2]
[330008854,1718928640543,-151.0,0.00013988,2]
[330008857,1718928640552,-541.089623,0.00013988,2]
[330008859,1718928640563,-541.089623,0.00013988,2]
[330008861,1718928640572,-151.0,0.00013988,2]
[330008863,1718928640582,-159.465463,0.00013988,2]
[330008865,1718928640592,-165.474087,0.00013988,2]
[330008867,1718928640602,-536.8789,0.00013988,2]
[330008869,1718928640612,-165.474087,0.00013988,2]
[330008871,1718928640622,-536.8789,0.00013988,2]
[330008873,1718928640631,-151.0,0.00013988,2]
[330008875,1718928640641,-807.225366,0.00013988,2]
[330008877,1718928640650,-151.0,0.00013988,2]
[330008879,1718928640660,-807.225366,0.00013988,2]
[330008880,1718928640670,-151.0,0.00013988,2]
[330008883,1718928640680,-169.026073,0.00013988,2]
[330008884,1718928640690,-151.0,0.00013988,2]
[330008886,1718928640700,-169.026073,0.00013988,2]
[330008888,1718928640710,-151.0,0.00013988,2]
[330008890,1718928640720,-556.624925,0.00013988,2]
[330008891,1718928640730,-151.0,0.00013988,2]
[330008892,1718928640741,-556.624925,0.00013988,2]
[330008893,1718928640750,-151.0,0.00013988,2]
[330008894,1718928640761,-1340.100068,0.00013988,2]
[330008895,1718928640771,-1340.100068,0.00013988,2]
[330008896,1718928640782,-151.0,0.00013988,2]
[330008897,1718928640792,-151.0,0.00013988,2]
[330008898,1718928640801,-151.0,0.00013988,2]
[330008899,1718928640812,-151.0,0.00013988,2]
[330008900,1718928640822,-151.0,0.00013988,2]
[330008901,1718928640832,-898.514282,0.00013988,2]
[330008902,1718928640841,-281.153389,0.00013988,2]
[330008903,1718928640852,-898.514282,0.00013988,2]
[330008904,1718928640863,-550.717714,0.00013988,2]
[330008905,1718928640873,-281.153389,0.00013988,2]
[330008906,1718928640883,-550.717714,0.00013988,2]
[330008907,1718928640893,-151.0,0.00013988,2]
[330008908,1718928640903,-151.0,0.00013988,2]
[330008909,1718928640912,-543.241076,0.00013988,2]
[330008910,1718928640922,-543.241076,0.00013988,2]
[330008911,1718928640931,-151.0,0.00013988,2]
[330008912,1718928640940,-151.0,0.00013988,2]
[330008913,1718928640951,-151.0,0.00013988,2]
[330008914,1718928640960,-151.0,0.00013988,2]
[330008915,1718928640969,-151.0,0.00013988,2]
[330008916,1718928640979,-151.0,0.00013988,2]
[330008917,1718928640989,-151.0,0.00013988,2]
[330008918,1718928640999,-151.0,0.00013988,2]
[330008919,1718928641009,-151.0,0.00013988,2]
[330008920,1718928641018,-529.32581,0.00013988,2]
[330008921,1718928641028,-529.32581,0.00013988,2]
[330008922,1718928641038,-151.0,0.00013988,2]
[330008923,1718928641048,-221.557383,0.00013988,2]
[330008924,1718928641058,-3477.6472657,0.00013988,2]
[330008925,1718928641067,-151.0,0.00013988,2]
[330008926,1718928641076,-155.60805,0.00013988,2]
[330008927,1718928641086,-155.60805,0.00013988,2]
[330008928,1718928641095,-151.0,0.00013988,2]
[330008929,1718928641107,-33837.4403217,0.00013988,2]
[330008930,1718928641117,-151.0,0.00013988,2]
[330008931,1718928641126,-3385.551451,0.00013988,2]
[330008932,1718928641139,-985.919754,0.00013988,2]
[330008933,1718928641148,-3385.551451,0.00013988,2]
[330008934,1718928641158,-985.919754,0.00013988,2]
[330008935,1718928641168,-151.0,0.00013988,2]
[330008936,1718928641178,-151.0,0.00013988,2]
[330008937,1718928641188,-151.0,0.00013988,2]
[330008938,1718928641198,-151.0,0.00013988,2]
[330008939,1718928641207,-151.0,0.00013988,2]
[330008940,1718928641216,-151.0,0.00013988,2]
[330008941,1718928641226,-151.0,0.00013988,2]
[330008942,1718928641236,-226.274324,0.00013988,2]
[330008943,1718928641245,-226.274324,0.00013988,2]
[330008944,1718928641254,-151.0,0.00013988,2]
[330008945,1718928641264,-151.0,0.00013988,2]
[330008946,1718928641273,-151.0,0.00013988,2]
[330008947,1718928641283,-460.873302,0.00013988,2]
[330008948,1718928641292,-460.873302,0.00013988,2]
[330008949,1718928641301,-151.0,0.00013988,2]
[330008950,1718928641310,-151.0,0.00013988,2]
[330008951,1718928641320,-460.873302,0.00013988,2]
[330008952,1718928641330,-460.873302,0.00013988,2]
[330008953,1718928641340,-151.0,0.00013988,2]
[330008954,1718928641349,-151.0,0.00013988,2]
[330008955,1718928641362,-491.850784,0.00013988,2]
[330008956,1718928641371,-491.850784,0.00013988,2]
[330008957,1718928641380,-151.0,0.00013988,2]
[330008958,1718928641389,-151.0,0.00013988,2]
[330008959,1718928641398,-151.0,0.00013988,2]
[330008960,1718928641407,-265.097334,0.00013988,2]
[330008961,1718928641415,-151.0,0.00013988,2]
[330008962,1718928641426,-151.0,0.00013989,2]
[330008963,1718928641436,-181.11025,0.00013989,2]
[330008964,1718928641449,-181.11025,0.00013989,2]
[330008965,1718928641458,-151.0,0.00013989,2]
[330008966,1718928641467,-269.41357,0.00013989,2]
[330008967,1718928641479,-222.621238,0.00013989,2]
[330008968,1718928641489,-222.621238,0.00013989,2]
[330008969,1718928641498,-151.0,0.00013989,2]
[330008970,1718928641508,-151.0,0.00013989,2]
[330008971,1718928641529,-151.0,0.00013989,2]
[330008972,1718928641546,-165.374972,0.00013989,2]
[330008973,1718928641558,-165.374972,0.00013989,2]
[330008974,1718928641574,-151.0,0.00013989,2]
[330008975,1718928641591,-151.0,0.00013989,2]
[330008976,1718928641607,-151.0,0.00013989,2]
[330008977,1718928641625,-205.237431,0.00013989,2]
[330008978,1718928641641,-151.0,0.00013989,2]
[330008979,1718928641655,-205.237431,0.00013989,2]
[330008980,1718928641670,-151.0,0.00013989,2]
[330008981,1718928641685,-151.0,0.00013989,2]
[330008982,1718928641700,-151.0,0.00013989,2]
[330008983,1718928641714,-541.089623,0.00013989,2]
[330008984,1718928641728,-541.089623,0.00013989,2]
[330008985,1718928641743,-184.791348,0.00013989,2]
[330008986,1718928641758,-536.8789,0.00013989,2]
[330008987,1718928641775,-165.474087,0.00013989,2]
[330008988,1718928641788,-536.8789,0.00013989,2]
[330008989,1718928641800,-165.474087,0.00013989,2]
[330008990,1718928641813,-151.0,0.00013989,2]
[330008991,1718928641830,-151.0,0.00013989,2]
[330008992,1718928641842,-807.225366,0.00013989,2]
[330008993,1718928641857,-807.225366,0.00013989,2]
[330008994,1718928641873,-151.0,0.00013989,2]
[330008995,1718928641884,-169.026073,0.00013989,2]
[330008996,1718928641897,-151.0,0.00013989,2]
[330008997,1718928641909,-169.026073,0.00013989,2]
[330008998,1718928641922,-151.0,0.00013989,2]
[330008999,1718928641935,-151.0,0.00013989,2]
[330009000,1718928641952,-151.0,0.00013989,2]
[330009001,1718928641965,-151.0,0.00013989,2]
[330009002,1718928641978,-151.0,0.00013989,2]
[330009003,1718928641992,-660.863592,0.00013989,2]
[330009004,1718928642005,-660.863592,0.00013989,2]
[330009005,1718928642017,-660.863592,0.00013989,2]
[330009006,1718928642030,-660.863592,0.00013989,2]
[330009007,1718928642042,-151.0,0.00013989,2]
[330009008,1718928642055,-151.0,0.00013989,2]
[330009009,1718928642067,-1467.668729,0.00013989,2]
[330009010,1718928642080,-1467.668729,0.00013989,2]
[330009011,1718928642094,-1467.668729,0.00013989,2]
[330009012,1718928642107,-1467.668729,0.00013989,2]
[330009013,1718928642119,-283.298356,0.00013989,2]
[330009014,1718928642131,-151.0,0.00013989,2]
[330009015,1718928642144,-151.0,0.00013989,2]
[330009016,1718928642157,-151.0,0.00013989,2]
[330009017,1718928642169,-151.0,0.00013989,2]
[330009018,1718928642181,-161.611053,0.00013989,2]
[330009019,1718928642194,-161.611053,0.00013989,2]
[330009020,1718928642206,-161.611053,0.00013989,2]
[330009021,1718928642220,-161.611053,0.00013989,2]
[330009022,1718928642233,-898.514282,0.00013989,2]
[330009023,1718928642245,-281.153389,0.00013989,2]
[330009024,1718928642258,-898.514282,0.00013989,2]
[330009025,1718928642271,-550.717714,0.00013989,2]
[330009026,1718928642284,-281.153389,0.00013989,2]
[330009027,1718928642298,-550.717714,0.00013989,2]
[330009028,1718928642311,-151.0,0.00013989,2]
[330009029,1718928642323,-151.0,0.00013989,2]
[330009030,1718928642336,-543.241076,0.00013989,2]
[330009033,1718928642349,-543.241076,0.00013989,2]
[330009035,1718928642363,-151.0,0.00013989,2]
[330009037,1718928642376,-199.56848,0.00013989,2]
[330009038,1718928642389,-151.0,0.00013989,2]
[330009039,1718928642402,-151.0,0.00013989,2]
[330009042,1718928642414,-151.0,0.00013989,2]
[330009046,1718928642428,-151.0,0.00013989,2]
[330009049,1718928642442,-151.0,0.00013989,2]
[330009053,1718928642455,-151.0,0.00013989,2]
[330009056,1718928642468,-151.0,0.00013989,2]
[330009060,1718928642482,-529.32581,0.00013989,2]
[330009062,1718928642494,-529.32581,0.00013989,2]
[330009064,1718928642507,-151.0,0.00013989,2]
[330009067,1718928642520,-151.0,0.00013989,2]
[330009069,1718928642532,-155.60805,0.00013989,2]
[330009071,1718928642545,-155.60805,0.00013989,2]
[330009074,1718928642558,-151.0,0.00013989,2]
[330009076,1718928642570,-151.0,0.00013989,2]
[330009078,1718928642583,-3385.551451,0.00013989,2]
[330009081,1718928642597,-985.919754,0.00013989,2]
[330009083,1718928642609,-3385.551451,0.00013989,2]
[330009086,1718928642625,-985.919754,0.00013989,2]
[330009088,1718928642638,-151.0,0.00013989,2]
[330009090,1718928642658,-151.0,0.00013989,2]
[330009091,1718928642671,-151.0,0.00013989,2]
[330009092,1718928642684,-151.0,0.00013989,2]
[330009093,1718928642698,-151.0,0.00013989,2]
[330009094,1718928642710,-3497.7430556,0.00013989,2]
[330009095,1718928642724,-226.274324,0.00013989,2]
[330009096,1718928642737,-226.274324,0.00013989,2]
[330009097,1718928642752,-151.0,0.00013989,2]
[330009098,1718928642764,-151.0,0.00013989,2]
[330009099,1718928642778,-460.873302,0.00013989,2]
[330009100,1718928642790,-151.0,0.00013989,2]
[330009101,1718928642803,-460.873302,0.00013989,2]
[330009102,1718928642816,-151.0,0.00013989,2]
[330009105,1718928642830,-491.850784,0.00013989,2]
[330009107,1718928642843,-491.850784,0.00013989,2]
[330009109,1718928642856,-151.0,0.00013989,2]
[330009111,1718928642869,-151.0,0.00013989,2]
[330009112,1718928642882,-179.432724,0.0001399,2]
[330009113,1718928642895,-151.0,0.00013998,2]
[330009114,1718928642908,-151.0,0.00013998,2]
[330009115,1718928642921,-3385.551451,0.00013998,2]
[330009116,1718928642934,-985.919754,0.00013998,2]
[330009117,1718928642947,-3385.551451,0.00013998,2]
[330009118,1718928642960,-985.919754,0.00013998,2]
[330009120,1718928642973,-151.0,0.00013998,2]
[330009121,1718928642986,-151.0,0.00013998,2]
[330009122,1718928642999,-151.0,0.00013998,2]
[330009123,1718928643012,-151.0,0.00013998,2]
[330009124,1718928643026,-226.274324,0.00013998,2]
[330009125,1718928643038,-226.274324,0.00013998,2]
[330009126,1718928643051,-151.0,0.00013998,2]
[330009127,1718928643063,-491.850784,0.00013998,2]
[330009128,1718928643076,-491.850784,0.00013998,2]
[330009129,1718928643089,-1790.43418001,0.00013999,2]
[330009130,1718928643102,-1000.0,0.00013999,2]
[330009131,1718928643115,-1000.0,0.00013999,2]
[330009132,1718928643129,-2534.68662982,0.00013999,2]
[330009133,1718928643142,-208.99062426,0.00013999,2]
[330009134,1718928643155,-193.553544,0.00013999,2]
[330009135,1718928643168,-193.553544,0.00013999,2]
[330009136,1718928643181,-151.0,0.00013999,2]
[330009137,1718928643195,-151.0,0.00013999,2]
[330009138,1718928643207,-151.0,0.00013999,2]
[330009139,1718928643219,-151.0,0.00013999,2]
[330009140,1718928643232,-151.0,0.00013999,2]
[330009141,1718928643246,-151.0,0.00013999,2]
[330009142,1718928643258,-165.374972,0.00013999,2]
[330009143,1718928643271,-165.374972,0.00013999,2]
[330009144,1718928643283,-151.0,0.00013999,2]
[330009145,1718928643296,-151.0,0.00013999,2]
[330009146,1718928643309,-155.371557,0.00013999,2]
[330009147,1718928643321,-205.237431,0.00013999,2]
[330009148,1718928643335,-151.0,0.00013999,2]
[330009149,1718928643347,-205.237431,0.00013999,2]
[330009150,1718928643361,-151.0,0.00013999,2]
[330009151,1718928643374,-151.0,0.00013999,2]
[330009152,1718928643386,-151.0,0.00013999,2]
[330009153,1718928643400,-541.089623,0.00013999,2]
[330009154,1718928643413,-541.089623,0.00013999,2]
[330009155,1718928643422,-1000.0,0.00013999,2]
[330009156,1718928643433,-807.225366,0.00013999,2]
[330009157,1718928643445,-807.225366,0.00013999,2]
[330009158,1718928643455,-556.624925,0.00013999,2]
[330009159,1718928643464,-556.624925,0.00013999,2]
[330009160,1718928643474,-151.0,0.00013999,2]
[330009161,1718928643484,-1340.100068,0.00013999,2]
[330009162,1718928643493,-1340.100068,0.00013999,2]
[330009163,1718928643503,-151.0,0.00013999,2]
[330009164,1718928643512,-151.0,0.00013999,2]
[330009165,1718928643522,-216.0275,0.00013999,2]
[330009166,1718928643533,-151.0,0.00013999,2]
[330009167,1718928643886,-151.0,0.00013999,2]
[330009168,1718928643926,-151.0,0.00013999,2]
[330009169,1718928643947,-151.0,0.00013999,2]
[330009170,1718928643957,-151.0,0.00013999,2]
[330009171,1718928643967,-529.32581,0.00013999,2]
[330009172,1718928643977,-529.32581,0.00013999,2]
[330009173,1718928643986,-164.067862,0.00013999,2]
[330009174,1718928643996,-158.491088,0.00013999,2]
[330009175,1718928644006,-155.60805,0.00013999,2]
[330009176,1718928644016,-155.60805,0.00013999,2]
[330009177,1718928644025,-151.0,0.00013999,2]
[330009178,1718928644035,-151.0,0.00013999,2]
[330009179,1718928644045,-460.873302,0.00013999,2]
[330009180,1718928644055,-151.0,0.00013999,2]
[330009181,1718928644066,-460.873302,0.00013999,2]
[330009182,1718928644077,-151.0,0.00013999,2]
[330009183,1718928644087,-517.0,0.00014,2]
[330009184,1718928644096,-167286.90481991,0.00014,2]
[330009185,1718928644697,-151.0,0.000139,2]
[330009186,1718928644707,-151.0,0.00013988,2]
[330009187,1718928644716,-10482.91625769,0.00014,2]
[330009188,1718928644728,-88103.29121964,0.00014,2]
[330009189,1718928644739,-30174.56729985,0.00014,2]
[330009190,1718928644759,-563.8784653,0.00014,2]
[330009191,1718928644771,-196851.45681193,0.00014,2]
[330009192,1718928644786,-12258.37352711,0.00014,2]
[330009193,1718928644918,-151.0,0.00013989,2]
[330009194,1718928644928,-176.35007536,0.00014,2]
[330009197,1718928645576,-446.9224433,0.00012961,2]
[330009198,1718928645673,-4181.60770092,0.00012961,2]
[330009199,1718928645682,-247661.6972635,0.00014,2]
[330009200,1718928645695,-298.31787138,0.00014,2]
[330009201,1718928645707,-400.57,0.00014,2]
[330009202,1718928645773,-259.34325549,0.00014,2]
[330009203,1718928645924,-25582.62590367,0.00014,2]
[330009204,1718928711908,2045.8766,0.00010901,2]
[330009205,1718928951423,155.0,0.00010933,2]
[330009206,1718929207638,157.58092106,0.00010933,2]
[330009207,1718929316487,831.76,0.00010344,2]
[330009221,1718929832450,-607.95818831,0.00011909,2]
[330009222,1718929832461,-1241.72374471,0.00011909,2]
[330009223,1718929832471,-3132.50342781,0.00011909,2]
[330009224,1718929832483,-829.64070365,0.00011909,2]
[330009225,1718929832615,-18068.17393552,0.00011909,2]
[330009226,1718929832624,-250.0,0.00012168,2]
[330009227,1718929832634,-800.0,0.00012176,2]
[330009228,1718929832643,-1492.34,0.0001222,2]
[330009229,1718929832652,-186.97,0.00012225,2]
[330009230,1718929832662,-177.26,0.0001223,2]
[330009231,1718929832672,-250.0,0.0001225,2]
[330009232,1718929832684,-470.17,0.00012252,2]
[330009233,1718929832693,-470.17,0.00012285,2]
[330009234,1718929832702,-293.74,0.00012285,2]
[330009235,1718929832711,-150.99,0.00012285,2]
[330009236,1718929832719,-499.99,0.00012285,2]
[330009237,1718929832729,-300.0,0.00012318,2]
[330009238,1718929832738,-150.0,0.00012318,2]
[330009239,1718929832747,-470.17,0.00012319,2]
[330009240,1718929832757,-470.17,0.00012352,2]
[330009241,1718929832766,-470.17,0.00012386,2]
[330009242,1718929832775,-470.17,0.0001242,2]
[330009243,1718929832785,-470.17,0.00012453,2]
[330009244,1718929832794,-500.0,0.00012474,2]
[330009245,1718929832803,-470.17,0.00012487,2]
[330009246,1718929832817,-470.17,0.0001252,2]
[330009247,1718929832826,-470.17,0.00012554,2]
[330009248,1718929832836,-172.01,0.00012565,2]
[330009249,1718929832845,-172.01,0.00012569,2]
[330009250,1718929832855,-200.0,0.00012571,2]
[330009251,1718929832864,-172.01,0.00012572,2]
[330009252,1718929832873,-150.99,0.00012575,2]
[330009253,1718929832882,-172.01,0.00012575,2]
[330009254,1718929832894,-172.01,0.00012578,2]
[330009255,1718929832903,-172.01,0.00012582,2]
[330009256,1718929832912,-172.01,0.00012585,2]
[330009257,1718929832922,-470.17,0.00012588,2]
[330009258,1718929832933,-172.01,0.00012588,2]
[330009259,1718929832943,-172.01,0.00012592,2]
[330009261,1718929832952,-172.01,0.00012595,2]
[330009263,1718929832961,-172.01,0.00012598,2]
[330009265,1718929832974,-155.04443898,0.00012601,2]
[330009267,1718929832983,-172.01,0.00012602,2]
[330009268,1718929832992,-172.01,0.00012605,2]
[330009269,1718929833001,-831.76,0.00012608,2]
[330009270,1718929833010,-172.01,0.00012608,2]
[330009271,1718929833019,-172.01,0.00012612,2]
[330009272,1718929833029,-172.01,0.00012615,2]
[330009273,1718929833038,-172.01,0.00012618,2]
[330009274,1718929833047,-470.17,0.00012621,2]
[330009275,1718929833056,-172.01,0.00012622,2]
[330009276,1718929833066,-172.01,0.00012625,2]
[330009278,1718929833075,-172.01,0.00012628,2]
[330009280,1718929833084,-5467.83828743,0.00012654,2]
[330009282,1718929833093,-470.17,0.00012655,2]
[330009284,1718929833102,-470.17,0.00012688,2]
[330009286,1718929833112,-470.17,0.00012722,2]
[330009288,1718929833120,-470.17,0.00012755,2]
[330009290,1718929833129,-470.17,0.00012789,2]
[330009291,1718929833138,-470.17,0.00012823,2]
[330009293,1718929833147,-470.17,0.00012856,2]
[330009295,1718929833156,-470.17,0.0001289,2]
[330009297,1718929833165,-852.48,0.00012945,2]
[330009299,1718929833176,-405.59,0.00012945,2]
[330009301,1718929833191,-179.77,0.0001298,2]
[330009303,1718929833200,-1704.51,0.00013041,2]
[330009305,1718929833210,-418.09,0.00013041,2]
[330009307,1718929833220,-852.48,0.00013041,2]
[330009309,1718929833230,-437.8,0.000132,2]
[330009311,1718929833239,-450.0,0.00013381,2]
[330009313,1718929833248,-532.05845602,0.00013381,2]
[330009316,1718929833258,-46864.2539291,0.00013382,2]
[330009318,1718929833267,-10000.0,0.00013393,2]
[330009320,1718929833276,-304.86533253,0.00013441,2]
[330009322,1718929833285,-420.0,0.00013518,2]
[330009323,1718929833295,-210.0,0.0001355,2]
[330009325,1718929833304,-150.0,0.00013671,2]
[330009327,1718929833314,-150.0,0.00013671,2]
[330009330,1718929833323,-150.0,0.00013671,2]
[330009332,1718929833332,-150.0,0.00013671,2]
[330009333,1718929833342,-1339.70233619,0.00013698,2]
[330009335,1718929833351,-800.0,0.00013698,2]
[330009337,1718929833360,-173.03,0.00013699,2]
[330009339,1718929833369,-161.03,0.00013699,2]
[330009341,1718929833379,-159.77,0.00013699,2]
[330009342,1718929833389,-623.5279466,0.00013699,2]
[330009343,1718929833400,-400.1233,0.000137,2]
[330009344,1718929833409,-6781.7837,0.000137,2]
[330009345,1718929833418,-49779.8604,0.000137,2]
[330009346,1718929833427,-504.32656924,0.00013718,2]
[330009347,1718929833441,-505.64551565,0.00013719,2]
[330009348,1718929833450,-13575.68506566,0.00013799,2]
[330009349,1718929833458,-537.17043537,0.00013799,2]
[330009350,1718929833467,-242.803246,0.00013799,2]
[330009351,1718929833476,-778.17029976,0.000138,2]
[330009352,1718929833485,-2500.0,0.000138,2]
[330009353,1718929833494,-12716.44100708,0.00013899,2]
[330009354,1718929833503,-1000.0,0.000139,2]
[330009355,1718929833512,-156.77732302,0.000139,2]
[330009356,1718929833521,-18899.80391905,0.000139,2]
[330009357,1718929833530,-329.80095471,0.000139,2]
[330009358,1718929833538,-1586.484589,0.000139,2]